[Event "Titled Tuesday Blitz November 07 Early 2023"]
[White "Cervantes Landeiro, Thalia"]
[Black "Hartikainen, Jarmo"]
[WhiteFideId "3520498"]
[BlackFideId "503134"]
[WhiteElo "2563"]
[BlackElo "2194"]
[Result "1-0"]
[Round "1"]
[TimeControl "180+1"]
[Date "2023.11.07"]
[WhiteClock "0:00:29"]
[BlackClock "0:00:10"]
[Board "219"]

1. d4 {[%clk 0:03:00]}  d5 {[%clk 0:02:59]} 2. c4 {[%clk 0:03:01]}  c5 {[%clk 0:02:58]} 3. cxd5 {[%clk 0:02:54]}  Qxd5 {[%clk 0:02:57]} 4. e3 {[%clk 0:02:55]}  cxd4 {[%clk 0:02:54]} 5. exd4 {[%clk 0:02:55]}  Nc6 {[%clk 0:02:52]} 6. Nf3 {[%clk 0:02:55]}  Bg4 {[%clk 0:02:50]} 7. Be3 {[%clk 0:02:55]}  e6 {[%clk 0:02:48]} 8. Nc3 {[%clk 0:02:55]}  Qa5 {[%clk 0:02:48]} 9. Be2 {[%clk 0:02:54]}  Nf6 {[%clk 0:02:48]} 10. O-O {[%clk 0:02:54]}  Be7 {[%clk 0:02:48]} 11. h3 {[%clk 0:02:53]}  Bh5 {[%clk 0:02:48]} 12. Qb3 {[%clk 0:02:50]}  Qb4 {[%clk 0:02:46]} 13. Qc2 {[%clk 0:02:33]}  O-O {[%clk 0:02:45]} 14. a3 {[%clk 0:02:33]}  Qd6 {[%clk 0:02:35]} 15. Rad1 {[%clk 0:02:31]}  Rac8 {[%clk 0:02:34]} 16. Qb1 {[%clk 0:02:30]}  a6 {[%clk 0:02:29]} 17. Bg5 {[%clk 0:02:24]}  b5 {[%clk 0:02:11]} 18. Rfe1 {[%clk 0:02:21]}  Bxf3 {[%clk 0:02:05]} 19. Bxf3 {[%clk 0:02:20]}  Nxd4 {[%clk 0:02:05]} 20. Bb7 {[%clk 0:02:05]}  Rcd8 {[%clk 0:01:43]} 21. Be4 {[%clk 0:02:03]}  Nxe4 {[%clk 0:01:33]} 22. Nxe4 {[%clk 0:02:03]}  Qc7 {[%clk 0:01:07]} 23. Rc1 {[%clk 0:01:45]}  Qa7 {[%clk 0:01:04]} 24. Be3 {[%clk 0:01:44]}  e5 {[%clk 0:01:02]} 25. b4 {[%clk 0:01:42]}  f5 {[%clk 0:00:55]} 26. Nc5 {[%clk 0:01:42]}  Qb6 {[%clk 0:00:37]} 27. Bxd4 {[%clk 0:01:38]}  Rxd4 {[%clk 0:00:37]} 28. Rxe5 {[%clk 0:01:38]}  Bf6 {[%clk 0:00:36]} 29. Rxf5 {[%clk 0:01:29]}  Qd6 {[%clk 0:00:25]} 30. Re1 {[%clk 0:01:24]}  Rd8 {[%clk 0:00:25]} 31. Qb3+ {[%clk 0:01:07]}  Kh8 {[%clk 0:00:23]} 32. Qe3 {[%clk 0:01:02]}  Rd1 {[%clk 0:00:20]} 33. Rf3 {[%clk 0:00:52]}  Rxe1+ {[%clk 0:00:19]} 34. Qxe1 {[%clk 0:00:52]}  Qd1 {[%clk 0:00:19]} 35. Re3 {[%clk 0:00:50]}  Qxe1+ {[%clk 0:00:18]} 36. Rxe1 {[%clk 0:00:50]}  h6 {[%clk 0:00:17]} 37. Re6 {[%clk 0:00:47]}  Rd1+ {[%clk 0:00:10]} 38. Kh2 {[%clk 0:00:47]}  Ra1 {[%clk 0:00:10]} 39. Rxa6 {[%clk 0:00:46]}  Be5+ {[%clk 0:00:11]} 40. g3 {[%clk 0:00:46]}  Bb2 {[%clk 0:00:11]} 41. Rb6 {[%clk 0:00:25]}  Rxa3 {[%clk 0:00:11]} 42. Rxb5 {[%clk 0:00:26]}  Bc3 {[%clk 0:00:10]} 43. Rb8+ {[%clk 0:00:25]}  Kh7 {[%clk 0:00:10]} 44. b5 {[%clk 0:00:26]}  Ra5 {[%clk 0:00:08]} 45. Ne4 {[%clk 0:00:25]}  Bd4 {[%clk 0:00:08]} 46. Kg2 {[%clk 0:00:22]}  Ra2 {[%clk 0:00:07]} 47. h4 {[%clk 0:00:20]}  Rb2 {[%clk 0:00:07]} 48. Kf3 {[%clk 0:00:21]}  Kg6 {[%clk 0:00:07]} 49. g4 {[%clk 0:00:21]}  Kf7 {[%clk 0:00:07]} 50. Rb7+ {[%clk 0:00:22]}  Ke6 {[%clk 0:00:07]} 51. g5 {[%clk 0:00:21]}  hxg5 {[%clk 0:00:06]} 52. hxg5 {[%clk 0:00:21]}  Kf5 {[%clk 0:00:06]} 53. Nd6+ {[%clk 0:00:19]}  Ke5 {[%clk 0:00:05]} 54. Nc4+ {[%clk 0:00:19]}  Kd5 {[%clk 0:00:05]} 55. Nxb2 {[%clk 0:00:20]}  Bxb2 {[%clk 0:00:05]} 56. b6 {[%clk 0:00:21]}  Bd4 {[%clk 0:00:05]} 57. Rb8 {[%clk 0:00:21]}  Kc6 {[%clk 0:00:05]} 58. b7 {[%clk 0:00:21]}  Kc7 {[%clk 0:00:06]} 59. Rd8 {[%clk 0:00:20]}  Kxb7 {[%clk 0:00:07]} 60. Rxd4 {[%clk 0:00:20]}  Kc6 {[%clk 0:00:07]} 61. Rf4 {[%clk 0:00:20]}  Kd6 {[%clk 0:00:07]} 62. Kg4 {[%clk 0:00:21]}  Ke6 {[%clk 0:00:08]} 63. f3 {[%clk 0:00:22]}  Ke5 {[%clk 0:00:08]} 64. Rf5+ {[%clk 0:00:22]}  Ke6 {[%clk 0:00:09]} 65. g6 {[%clk 0:00:23]}  Ke7 {[%clk 0:00:09]} 66. Kg5 {[%clk 0:00:24]}  Ke6 {[%clk 0:00:10]} 67. Rf7 {[%clk 0:00:24]}  Kd6 {[%clk 0:00:10]} 68. Rxg7 {[%clk 0:00:25]}  Ke6 {[%clk 0:00:10]} 69. Rf7 {[%clk 0:00:26]}  Ke5 {[%clk 0:00:11]} 70. g7 {[%clk 0:00:26]}  Ke6 {[%clk 0:00:11]} 71. g8=Q {[%clk 0:00:26]}  Ke5 {[%clk 0:00:11]} 72. Qe8+ {[%clk 0:00:26]}  Kd6 {[%clk 0:00:11]} 73. Rd7+ {[%clk 0:00:27]}  Kc6 {[%clk 0:00:10]} 74. Qc8+ {[%clk 0:00:28]}  Kb6 {[%clk 0:00:10]} 75. Rb7+ {[%clk 0:00:28]}  Ka6 {[%clk 0:00:10]} 76. Qa8# {[%clk 0:00:29]} 1-0


[Site "https://www.chess.com"]

[Event "Titled Tuesday Blitz November 07 Early 2023"]
[White "Adel, Sara"]
[Black "Jia, Haoxiang"]
[WhiteFideId "10616764"]
[BlackFideId "8602999"]
[WhiteElo "2193"]
[BlackElo "2563"]
[Result "0-1"]
[Round "1"]
[TimeControl "180+1"]
[Date "2023.11.07"]
[WhiteClock "0:00:23"]
[BlackClock "0:00:43"]
[Board "220"]

1. e4 {[%clk 0:02:54]}  c5 {[%clk 0:02:58]} 2. Nf3 {[%clk 0:02:53]}  d6 {[%clk 0:02:58]} 3. d4 {[%clk 0:02:54]}  cxd4 {[%clk 0:02:57]} 4. Nxd4 {[%clk 0:02:55]}  Nf6 {[%clk 0:02:54]} 5. Nc3 {[%clk 0:02:55]}  g6 {[%clk 0:02:52]} 6. Be3 {[%clk 0:02:45]}  Bg7 {[%clk 0:02:48]} 7. f3 {[%clk 0:02:44]}  O-O {[%clk 0:02:46]} 8. Qd2 {[%clk 0:02:42]}  Nc6 {[%clk 0:02:46]} 9. g4 {[%clk 0:02:41]}  Be6 {[%clk 0:02:43]} 10. Nxe6 {[%clk 0:02:39]}  fxe6 {[%clk 0:02:39]} 11. Bc4 {[%clk 0:02:39]}  d5 {[%clk 0:02:38]} 12. g5 {[%clk 0:02:13]}  dxc4 {[%clk 0:02:26]} 13. Qxd8 {[%clk 0:01:52]}  Raxd8 {[%clk 0:02:24]} 14. gxf6 {[%clk 0:01:53]}  exf6 {[%clk 0:02:24]} 15. Ke2 {[%clk 0:01:51]}  f5 {[%clk 0:02:15]} 16. Bc5 {[%clk 0:01:49]}  Rf7 {[%clk 0:02:14]} 17. Rhd1 {[%clk 0:01:48]}  Rfd7 {[%clk 0:02:12]} 18. Nb5 {[%clk 0:01:43]}  Bxb2 {[%clk 0:02:08]} 19. Rxd7 {[%clk 0:01:39]}  Rxd7 {[%clk 0:02:04]} 20. Rb1 {[%clk 0:01:39]}  c3 {[%clk 0:02:00]} 21. Rd1 {[%clk 0:01:34]}  Rxd1 {[%clk 0:01:56]} 22. Kxd1 {[%clk 0:01:34]}  a6 {[%clk 0:01:57]} 23. Nc7 {[%clk 0:01:32]}  Kf7 {[%clk 0:01:55]} 24. exf5 {[%clk 0:01:20]}  exf5 {[%clk 0:01:53]} 25. f4 {[%clk 0:01:19]}  h6 {[%clk 0:01:50]} 26. Nd5 {[%clk 0:01:06]}  g5 {[%clk 0:01:40]} 27. h3 {[%clk 0:00:59]}  Nd8 {[%clk 0:01:24]} 28. Bb4 {[%clk 0:00:46]}  Ne6 {[%clk 0:01:21]} 29. fxg5 {[%clk 0:00:45]}  hxg5 {[%clk 0:01:21]} 30. Ke2 {[%clk 0:00:46]}  Kg6 {[%clk 0:01:03]} 31. a4 {[%clk 0:00:45]}  f4 {[%clk 0:00:56]} 32. a5 {[%clk 0:00:42]}  Kf5 {[%clk 0:00:56]} 33. Ne7+ {[%clk 0:00:39]}  Ke4 {[%clk 0:00:56]} 34. Nc8 {[%clk 0:00:38]}  Nd4+ {[%clk 0:00:56]} 35. Kf2 {[%clk 0:00:31]}  Nxc2 {[%clk 0:00:50]} 36. Be7 {[%clk 0:00:30]}  Ne3 {[%clk 0:00:44]} 37. Nd6+ {[%clk 0:00:28]}  Kd3 {[%clk 0:00:45]} 38. Bxg5 {[%clk 0:00:23]}  c2 {[%clk 0:00:43]} 39. Bxf4 {[%clk 0:00:23]}  c1=Q {[%clk 0:00:43]} 0-1


[Site "https://www.chess.com"]

[Event "Titled Tuesday Blitz November 07 Early 2023"]
[White "Vila Dupla, Aurelio"]
[Black "OPQRC"]
[WhiteFideId "2203383"]
[WhiteElo "2170"]
[BlackElo "2550"]
[Result "0-1"]
[Round "1"]
[TimeControl "180+1"]
[Date "2023.11.07"]
[WhiteClock "0:00:04"]
[BlackClock "0:00:06"]
[Board "224"]

1. Nf3 {[%clk 0:03:00]}  Nf6 {[%clk 0:00:58]} 2. d4 {[%clk 0:00:59]}  g6 {[%clk 0:00:57]} 3. g3 {[%clk 0:00:59]}  Bg7 {[%clk 0:00:57]} 4. Bg2 {[%clk 0:00:59]}  O-O {[%clk 0:00:58]} 5. O-O {[%clk 0:01:00]}  d6 {[%clk 0:00:59]} 6. c4 {[%clk 0:01:00]}  Nbd7 {[%clk 0:00:59]} 7. Nc3 {[%clk 0:01:00]}  e5 {[%clk 0:01:00]} 8. h3 {[%clk 0:00:59]}  c6 {[%clk 0:01:00]} 9. e4 {[%clk 0:00:59]}  Qa5 {[%clk 0:00:59]} 10. Re1 {[%clk 0:00:59]}  exd4 {[%clk 0:00:54]} 11. Nxd4 {[%clk 0:00:58]}  Ne5 {[%clk 0:00:54]} 12. Nb3 {[%clk 0:00:33]}  Qc7 {[%clk 0:00:53]} 13. Qe2 {[%clk 0:00:28]}  Be6 {[%clk 0:00:53]} 14. Nd2 {[%clk 0:00:28]}  a6 {[%clk 0:00:36]} 15. f4 {[%clk 0:00:28]}  Ned7 {[%clk 0:00:36]} 16. Nf3 {[%clk 0:00:22]}  b5 {[%clk 0:00:31]} 17. cxb5 {[%clk 0:00:20]}  axb5 {[%clk 0:00:32]} 18. Bd2 {[%clk 0:00:13]}  b4 {[%clk 0:00:31]} 19. Nd1 {[%clk 0:00:13]}  c5 {[%clk 0:00:28]} 20. a3 {[%clk 0:00:13]}  Nb6 {[%clk 0:00:20]} 21. Nf2 {[%clk 0:00:09]}  Bc4 {[%clk 0:00:20]} 22. Qd1 {[%clk 0:00:09]}  bxa3 {[%clk 0:00:16]} 23. Rxa3 {[%clk 0:00:08]}  Rxa3 {[%clk 0:00:15]} 24. bxa3 {[%clk 0:00:09]}  Re8 {[%clk 0:00:16]} 25. e5 {[%clk 0:00:09]}  dxe5 {[%clk 0:00:14]} 26. Nxe5 {[%clk 0:00:09]}  Bd5 {[%clk 0:00:14]} 27. Ba5 {[%clk 0:00:09]}  Bxg2 {[%clk 0:00:12]} 28. Kxg2 {[%clk 0:00:10]}  Qb7+ {[%clk 0:00:12]} 29. Kh2 {[%clk 0:00:11]}  Nbd5 {[%clk 0:00:12]} 30. Qc2 {[%clk 0:00:07]}  h5 {[%clk 0:00:10]} 31. Bc3 {[%clk 0:00:07]}  Nxc3 {[%clk 0:00:09]} 32. Qxc3 {[%clk 0:00:07]}  h4 {[%clk 0:00:09]} 33. gxh4 {[%clk 0:00:06]}  Nh5 {[%clk 0:00:07]} 34. Nfg4 {[%clk 0:00:07]}  Nxf4 {[%clk 0:00:07]} 35. Qxc5 {[%clk 0:00:04]}  Qg2# {[%clk 0:00:06]} 0-1


[Site "https://www.chess.com"]

[Event "Titled Tuesday Blitz November 07 Early 2023"]
[White "Skuhala, Jernej"]
[Black "Skibbe, Willi"]
[WhiteFideId "14605651"]
[BlackFideId "4682190"]
[WhiteElo "2549"]
[BlackElo "2165"]
[Result "1-0"]
[Round "1"]
[TimeControl "180+1"]
[Date "2023.11.07"]
[WhiteClock "0:01:51"]
[BlackClock "0:00:40"]
[Board "225"]

1. e4 {[%clk 0:03:00]}  e6 {[%clk 0:02:58]} 2. Nc3 {[%clk 0:02:59]}  d5 {[%clk 0:02:56]} 3. d4 {[%clk 0:03:00]}  Nf6 {[%clk 0:02:56]} 4. e5 {[%clk 0:03:00]}  Nfd7 {[%clk 0:02:56]} 5. Nce2 {[%clk 0:02:59]}  c5 {[%clk 0:02:54]} 6. c3 {[%clk 0:03:00]}  Nc6 {[%clk 0:02:54]} 7. Nf3 {[%clk 0:02:55]}  b5 {[%clk 0:02:51]} 8. Nf4 {[%clk 0:02:54]}  b4 {[%clk 0:02:38]} 9. h4 {[%clk 0:02:52]}  a5 {[%clk 0:02:21]} 10. Bb5 {[%clk 0:02:49]}  Qb6 {[%clk 0:02:20]} 11. Qa4 {[%clk 0:02:47]}  Bb7 {[%clk 0:02:18]} 12. Be3 {[%clk 0:02:46]}  c4 {[%clk 0:02:15]} 13. O-O {[%clk 0:02:42]}  Be7 {[%clk 0:02:07]} 14. Ng5 {[%clk 0:02:42]}  Bxg5 {[%clk 0:01:55]} 15. hxg5 {[%clk 0:02:43]}  g6 {[%clk 0:01:54]} 16. g3 {[%clk 0:02:41]}  Ke7 {[%clk 0:01:51]} 17. Kg2 {[%clk 0:02:41]}  Qc7 {[%clk 0:01:35]} 18. Qc2 {[%clk 0:02:30]}  Nb6 {[%clk 0:01:32]} 19. Qd2 {[%clk 0:02:23]}  Na7 {[%clk 0:01:26]} 20. cxb4 {[%clk 0:02:17]}  Nxb5 {[%clk 0:01:10]} 21. bxa5 {[%clk 0:02:16]}  c3 {[%clk 0:01:10]} 22. axb6 {[%clk 0:02:13]}  Qxb6 {[%clk 0:01:08]} 23. bxc3 {[%clk 0:02:13]}  Rhc8 {[%clk 0:01:06]} 24. Ne2 {[%clk 0:02:11]}  Na3 {[%clk 0:01:03]} 25. Nc1 {[%clk 0:02:04]}  Qa5 {[%clk 0:00:58]} 26. Ne2 {[%clk 0:02:01]}  Ba6 {[%clk 0:00:58]} 27. Rfc1 {[%clk 0:02:00]}  Bxe2 {[%clk 0:00:57]} 28. Qxe2 {[%clk 0:02:01]}  Nc4 {[%clk 0:00:57]} 29. Qf3 {[%clk 0:02:01]}  Kf8 {[%clk 0:00:52]} 30. Qf6 {[%clk 0:01:56]}  Kg8 {[%clk 0:00:52]} 31. Rh1 {[%clk 0:01:55]}  Qd8 {[%clk 0:00:45]} 32. Qf3 {[%clk 0:01:52]}  Ra3 {[%clk 0:00:42]} 33. Rxh7 {[%clk 0:01:50]}  Kxh7 {[%clk 0:00:40]} 34. Qxf7+ {[%clk 0:01:50]}  Kh8 {[%clk 0:00:40]} 35. Rh1# {[%clk 0:01:51]} 1-0


[Site "https://www.chess.com"]

[Event "Titled Tuesday Blitz November 07 Early 2023"]
[White "Wartiovaara, Oliver"]
[Black "Modric, Nesa"]
[WhiteFideId "513024"]
[BlackFideId "922579"]
[WhiteElo "2544"]
[BlackElo "2149"]
[Result "1-0"]
[Round "1"]
[TimeControl "180+1"]
[Date "2023.11.07"]
[WhiteClock "0:01:04"]
[BlackClock "0:00:00"]
[Board "229"]

1. e4 {[%clk 0:03:00]}  d5 {[%clk 0:02:59]} 2. exd5 {[%clk 0:02:56]}  Qxd5 {[%clk 0:02:58]} 3. Nc3 {[%clk 0:02:56]}  Qa5 {[%clk 0:02:57]} 4. d4 {[%clk 0:02:51]}  c6 {[%clk 0:02:56]} 5. Nf3 {[%clk 0:02:48]}  Nf6 {[%clk 0:02:55]} 6. Bc4 {[%clk 0:02:38]}  Bf5 {[%clk 0:02:54]} 7. Ne5 {[%clk 0:02:38]}  e6 {[%clk 0:02:53]} 8. g4 {[%clk 0:02:34]}  Bg6 {[%clk 0:02:53]} 9. h4 {[%clk 0:02:34]}  Nbd7 {[%clk 0:02:54]} 10. Nxd7 {[%clk 0:02:32]}  Nxd7 {[%clk 0:02:54]} 11. h5 {[%clk 0:02:29]}  Be4 {[%clk 0:02:54]} 12. Rh3 {[%clk 0:02:29]}  Bd5 {[%clk 0:02:54]} 13. Bxd5 {[%clk 0:02:25]}  cxd5 {[%clk 0:02:51]} 14. Bd2 {[%clk 0:02:21]}  Bb4 {[%clk 0:02:49]} 15. h6 {[%clk 0:02:09]}  g6 {[%clk 0:02:41]} 16. a3 {[%clk 0:02:03]}  Bxc3 {[%clk 0:02:32]} 17. Rxc3 {[%clk 0:02:03]}  Qd8 {[%clk 0:02:26]} 18. Qf3 {[%clk 0:01:57]}  O-O {[%clk 0:02:22]} 19. O-O-O {[%clk 0:01:55]}  Rc8 {[%clk 0:02:20]} 20. g5 {[%clk 0:01:45]}  Rxc3 {[%clk 0:02:17]} 21. Qxc3 {[%clk 0:01:46]}  Qc8 {[%clk 0:02:08]} 22. Qxc8 {[%clk 0:01:42]}  Rxc8 {[%clk 0:02:08]} 23. f4 {[%clk 0:01:40]}  Nb6 {[%clk 0:02:06]} 24. b3 {[%clk 0:01:39]}  Rc6 {[%clk 0:01:55]} 25. a4 {[%clk 0:01:34]}  Nc8 {[%clk 0:01:54]} 26. Bb4 {[%clk 0:01:33]}  Nd6 {[%clk 0:01:47]} 27. Bxd6 {[%clk 0:01:34]}  Rxd6 {[%clk 0:01:48]} 28. Rd3 {[%clk 0:01:33]}  Rc6 {[%clk 0:01:47]} 29. Kb2 {[%clk 0:01:32]}  Kf8 {[%clk 0:01:46]} 30. Rc3 {[%clk 0:01:19]}  Rxc3 {[%clk 0:01:26]} 31. Kxc3 {[%clk 0:01:20]}  Ke7 {[%clk 0:01:27]} 32. Kb4 {[%clk 0:01:20]}  Kd6 {[%clk 0:01:27]} 33. Kb5 {[%clk 0:01:17]}  Kc7 {[%clk 0:01:26]} 34. c4 {[%clk 0:01:16]}  a6+ {[%clk 0:01:21]} 35. Kc5 {[%clk 0:01:10]}  b6+ {[%clk 0:01:04]} 36. Kb4 {[%clk 0:01:10]}  Kc6 {[%clk 0:00:43]} 37. a5 {[%clk 0:01:08]}  dxc4 {[%clk 0:00:08]} 38. bxc4 {[%clk 0:01:07]}  bxa5+ {[%clk 0:00:05]} 39. Kxa5 {[%clk 0:01:06]}  Kb7 {[%clk 0:00:06]} 40. c5 {[%clk 0:01:04]}  Ka7 {[%clk 0:00:04]} 41. c6 {[%clk 0:01:04]}  Kb8 {[%clk 0:00:02]} 42. Kxa6 {[%clk 0:01:04]}  Kc7 {[%clk 0:00:03]} 43. Kb5 {[%clk 0:01:04]}  Kd6 {[%clk 0:00:00]} 44. Kb6 {[%clk 0:01:04]} 1-0


[Site "https://www.chess.com"]

[Event "Titled Tuesday Blitz November 07 Early 2023"]
[White "Manukian, Artak"]
[Black "Gaikwad, Siddhant"]
[WhiteFideId "13301373"]
[BlackFideId "25010239"]
[WhiteElo "2535"]
[BlackElo "2125"]
[Result "1-0"]
[Round "1"]
[TimeControl "180+1"]
[Date "2023.11.07"]
[WhiteClock "0:00:11"]
[BlackClock "0:00:02"]
[Board "233"]

1. e4 {[%clk 0:03:00]}  c5 {[%clk 0:02:59]} 2. Nf3 {[%clk 0:03:00]}  d6 {[%clk 0:02:58]} 3. Bb5+ {[%clk 0:02:59]}  Bd7 {[%clk 0:02:56]} 4. Bxd7+ {[%clk 0:02:59]}  Nxd7 {[%clk 0:02:57]} 5. c4 {[%clk 0:03:00]}  g6 {[%clk 0:02:56]} 6. Nc3 {[%clk 0:02:57]}  Bg7 {[%clk 0:02:56]} 7. d3 {[%clk 0:02:56]}  Ngf6 {[%clk 0:02:56]} 8. O-O {[%clk 0:02:54]}  O-O {[%clk 0:02:56]} 9. Bg5 {[%clk 0:02:50]}  a6 {[%clk 0:02:51]} 10. a4 {[%clk 0:02:49]}  b6 {[%clk 0:02:49]} 11. Qd2 {[%clk 0:02:44]}  Rb8 {[%clk 0:02:49]} 12. Bh6 {[%clk 0:02:42]}  Ne5 {[%clk 0:02:47]} 13. Ne1 {[%clk 0:02:36]}  e6 {[%clk 0:02:22]} 14. Bxg7 {[%clk 0:02:33]}  Kxg7 {[%clk 0:02:22]} 15. f4 {[%clk 0:02:33]}  Nc6 {[%clk 0:02:21]} 16. Nc2 {[%clk 0:02:31]}  d5 {[%clk 0:02:17]} 17. e5 {[%clk 0:02:30]}  Ne8 {[%clk 0:02:12]} 18. Qf2 {[%clk 0:02:21]}  d4 {[%clk 0:01:49]} 19. Ne4 {[%clk 0:02:19]}  Ne7 {[%clk 0:01:40]} 20. g4 {[%clk 0:02:13]}  Qc7 {[%clk 0:01:39]} 21. Qh4 {[%clk 0:02:08]}  Ng8 {[%clk 0:01:26]} 22. g5 {[%clk 0:01:54]}  b5 {[%clk 0:01:25]} 23. axb5 {[%clk 0:01:50]}  axb5 {[%clk 0:01:24]} 24. Nf6 {[%clk 0:01:35]}  Ngxf6 {[%clk 0:01:12]} 25. exf6+ {[%clk 0:01:32]}  Kg8 {[%clk 0:01:06]} 26. Na3 {[%clk 0:01:31]}  bxc4 {[%clk 0:01:04]} 27. Nxc4 {[%clk 0:01:31]}  h5 {[%clk 0:00:46]} 28. gxh6 {[%clk 0:01:16]}  Qd8 {[%clk 0:00:44]} 29. h7+ {[%clk 0:01:06]}  Kh8 {[%clk 0:00:44]} 30. Ne5 {[%clk 0:00:57]}  Qxf6 {[%clk 0:00:29]} 31. Qxf6+ {[%clk 0:00:42]}  Nxf6 {[%clk 0:00:30]} 32. Ra7 {[%clk 0:00:40]}  Kg7 {[%clk 0:00:16]} 33. Rc1 {[%clk 0:00:26]}  Nxh7 {[%clk 0:00:15]} 34. Rxc5 {[%clk 0:00:23]}  Rxb2 {[%clk 0:00:12]} 35. Rcc7 {[%clk 0:00:19]}  Rb1+ {[%clk 0:00:12]} 36. Kf2 {[%clk 0:00:18]}  g5 {[%clk 0:00:09]} 37. Nxf7 {[%clk 0:00:14]}  g4 {[%clk 0:00:02]} 38. Nh8+ {[%clk 0:00:10]}  Kxh8 {[%clk 0:00:02]} 39. Rxh7+ {[%clk 0:00:10]}  Kg8 {[%clk 0:00:02]} 40. Rag7# {[%clk 0:00:11]} 1-0


[Site "https://www.chess.com"]

[Event "Titled Tuesday Blitz November 07 Early 2023"]
[White "Karimov, Alisher"]
[Black "Osiecki, Stanislaw"]
[WhiteFideId "14700280"]
[BlackFideId "1102990"]
[WhiteElo "2533"]
[BlackElo "2106"]
[Result "1-0"]
[Round "1"]
[TimeControl "180+1"]
[Date "2023.11.07"]
[WhiteClock "0:00:29"]
[BlackClock "0:00:02"]
[Board "235"]

1. c4 {[%clk 0:02:59]}  Nf6 {[%clk 0:02:57]} 2. Nc3 {[%clk 0:02:58]}  g6 {[%clk 0:02:55]} 3. g3 {[%clk 0:02:58]}  d6 {[%clk 0:02:56]} 4. Bg2 {[%clk 0:02:58]}  Bg7 {[%clk 0:02:57]} 5. Nf3 {[%clk 0:02:59]}  O-O {[%clk 0:02:58]} 6. O-O {[%clk 0:02:59]}  e5 {[%clk 0:02:59]} 7. d3 {[%clk 0:02:57]}  Nbd7 {[%clk 0:03:00]} 8. Rb1 {[%clk 0:02:57]}  a5 {[%clk 0:02:59]} 9. a3 {[%clk 0:02:56]}  Nh5 {[%clk 0:02:56]} 10. b4 {[%clk 0:02:52]}  axb4 {[%clk 0:02:56]} 11. axb4 {[%clk 0:02:51]}  f5 {[%clk 0:02:57]} 12. Nd5 {[%clk 0:02:51]}  c6 {[%clk 0:02:56]} 13. Bg5 {[%clk 0:02:51]}  Ndf6 {[%clk 0:02:48]} 14. Nxf6+ {[%clk 0:02:49]}  Bxf6 {[%clk 0:02:43]} 15. Bxf6 {[%clk 0:02:49]}  Qxf6 {[%clk 0:02:42]} 16. b5 {[%clk 0:02:49]}  Bd7 {[%clk 0:02:40]} 17. bxc6 {[%clk 0:02:47]}  Bxc6 {[%clk 0:02:38]} 18. Qd2 {[%clk 0:02:44]}  e4 {[%clk 0:02:38]} 19. dxe4 {[%clk 0:02:38]}  Bxe4 {[%clk 0:02:37]} 20. Rb6 {[%clk 0:02:35]}  Rfd8 {[%clk 0:02:31]} 21. Rd1 {[%clk 0:02:33]}  Ra1 {[%clk 0:02:29]} 22. Nd4 {[%clk 0:02:26]}  Rxd1+ {[%clk 0:02:28]} 23. Qxd1 {[%clk 0:02:26]}  Bxg2 {[%clk 0:02:26]} 24. Kxg2 {[%clk 0:02:26]}  Qe5 {[%clk 0:02:22]} 25. Nf3 {[%clk 0:02:22]}  Qe4 {[%clk 0:02:21]} 26. Qd4 {[%clk 0:02:13]}  Rd7 {[%clk 0:02:07]} 27. Rxd6 {[%clk 0:02:02]}  Rxd6 {[%clk 0:02:06]} 28. Qxd6 {[%clk 0:02:02]}  Qxc4 {[%clk 0:02:05]} 29. Qd8+ {[%clk 0:01:48]}  Kg7 {[%clk 0:02:01]} 30. Qe7+ {[%clk 0:01:47]}  Qf7 {[%clk 0:02:00]} 31. Qe5+ {[%clk 0:01:44]}  Qf6 {[%clk 0:01:59]} 32. Qc7+ {[%clk 0:01:40]}  Qf7 {[%clk 0:01:59]} 33. Qb6 {[%clk 0:01:39]}  Qd7 {[%clk 0:01:34]} 34. Qb2+ {[%clk 0:01:35]}  Kg8 {[%clk 0:01:32]} 35. h4 {[%clk 0:01:32]}  Qc6 {[%clk 0:01:30]} 36. Kh2 {[%clk 0:01:29]}  Nf6 {[%clk 0:01:30]} 37. Ne5 {[%clk 0:01:23]}  Ng4+ {[%clk 0:01:25]} 38. Nxg4 {[%clk 0:01:22]}  fxg4 {[%clk 0:01:26]} 39. Qd4 {[%clk 0:01:11]}  h5 {[%clk 0:01:18]} 40. e4 {[%clk 0:01:03]}  b5 {[%clk 0:01:17]} 41. e5 {[%clk 0:01:02]}  Qe6 {[%clk 0:00:49]} 42. Qd8+ {[%clk 0:00:49]}  Kh7 {[%clk 0:00:49]} 43. Qc7+ {[%clk 0:00:45]}  Kh6 {[%clk 0:00:47]} 44. Qb8 {[%clk 0:00:45]}  Qf7 {[%clk 0:00:31]} 45. Qh8+ {[%clk 0:00:40]}  Qh7 {[%clk 0:00:30]} 46. Qf6 {[%clk 0:00:32]}  Qg8 {[%clk 0:00:20]} 47. e6 {[%clk 0:00:29]}  b4 {[%clk 0:00:10]} 48. e7 {[%clk 0:00:29]}  b3 {[%clk 0:00:10]} 49. Qf8+ {[%clk 0:00:29]}  Kh7 {[%clk 0:00:07]} 50. Qxg8+ {[%clk 0:00:28]}  Kxg8 {[%clk 0:00:02]} 51. e8=Q+ {[%clk 0:00:29]} 1-0


[Site "https://www.chess.com"]

[Event "Titled Tuesday Blitz November 07 Early 2023"]
[White "Tifferet, Shaked"]
[Black "Freeeeeeeeeeeeeeeeee"]
[WhiteFideId "2811529"]
[WhiteElo "2531"]
[BlackElo "2024"]
[Result "1-0"]
[Round "1"]
[TimeControl "180+1"]
[Date "2023.11.07"]
[WhiteClock "0:01:21"]
[BlackClock "0:00:03"]
[Board "241"]

1. c4 {[%clk 0:02:59]}  e6 {[%clk 0:02:56]} 2. e3 {[%clk 0:02:59]}  d5 {[%clk 0:02:55]} 3. Nc3 {[%clk 0:03:00]}  c6 {[%clk 0:02:56]} 4. b3 {[%clk 0:02:59]}  Nf6 {[%clk 0:02:51]} 5. Bb2 {[%clk 0:02:59]}  Bd6 {[%clk 0:02:52]} 6. Nf3 {[%clk 0:02:54]}  Nbd7 {[%clk 0:02:51]} 7. Rg1 {[%clk 0:02:50]}  e5 {[%clk 0:02:46]} 8. g4 {[%clk 0:02:49]}  e4 {[%clk 0:02:45]} 9. Nd4 {[%clk 0:02:49]}  Ne5 {[%clk 0:02:44]} 10. g5 {[%clk 0:02:45]}  Bg4 {[%clk 0:02:33]} 11. Qc2 {[%clk 0:02:42]}  c5 {[%clk 0:01:53]} 12. gxf6 {[%clk 0:02:01]}  cxd4 {[%clk 0:01:48]} 13. Rxg4 {[%clk 0:02:01]}  Nxg4 {[%clk 0:01:18]} 14. fxg7 {[%clk 0:01:52]}  Rg8 {[%clk 0:01:16]} 15. Nxd5 {[%clk 0:01:53]}  d3 {[%clk 0:01:01]} 16. Bxd3 {[%clk 0:01:51]}  exd3 {[%clk 0:01:02]} 17. Qxd3 {[%clk 0:01:52]}  Qh4 {[%clk 0:00:11]} 18. Qe4+ {[%clk 0:01:45]}  Kd8 {[%clk 0:00:11]} 19. Bf6+ {[%clk 0:01:38]}  Qxf6 {[%clk 0:00:04]} 20. Nxf6 {[%clk 0:01:38]}  Nxf6 {[%clk 0:00:05]} 21. Qh4 {[%clk 0:01:38]}  Be7 {[%clk 0:00:05]} 22. Qh6 {[%clk 0:01:23]}  Ke8 {[%clk 0:00:05]} 23. O-O-O {[%clk 0:01:22]}  Rd8 {[%clk 0:00:06]} 24. d4 {[%clk 0:01:22]}  Ng4 {[%clk 0:00:05]} 25. Qxh7 {[%clk 0:01:21]}  Kd7 {[%clk 0:00:05]} 26. Qf5+ {[%clk 0:01:21]}  Kc7 {[%clk 0:00:03]} 27. Qxg4 {[%clk 0:01:21]} 1-0


[Site "https://www.chess.com"]